[Event "*** Biggest EVER Titled Tuesday"]
[Site "Chess.com"]
[Date "2018.04.17"]
[Round "8"]
[White "Blackmind96"]
[Black "murmah2003"]
[Result "1/2-1/2"]
[WhiteElo "2530"]
[BlackElo "2535"]
[TimeControl "180+2"]
[EndTime "14:58:19 PDT"]
[Termination "Game drawn by stalemate"]

1. d4 {[%clk 0:03:00.4]} 1... Nf6 {[%clk 0:02:59.4]} 2. c4 {[%clk 0:02:50.3]}
2... g6 {[%clk 0:02:57.5]} 3. Nc3 {[%clk 0:02:50.1]} 3... Bg7 {[%clk 0:02:56.1]}
4. e4 {[%clk 0:02:50.6]} 4... O-O {[%clk 0:02:57.2]} 5. f3 {[%clk 0:02:51.2]}
5... c5 {[%clk 0:02:55.4]} 6. Nge2 {[%clk 0:02:51.4]} 6... Nc6 {[%clk
0:02:51.3]} 7. Be3 {[%clk 0:02:51.6]} 7... cxd4 {[%clk 0:02:44.8]} 8. Nxd4
{[%clk 0:02:53.5]} 8... d6 {[%clk 0:02:46.1]} 9. Qd2 {[%clk 0:02:54]} 9... Bd7
{[%clk 0:02:45.7]} 10. Be2 {[%clk 0:02:54.7]} 10... Nxd4 {[%clk 0:02:44.4]} 11.
Bxd4 {[%clk 0:02:56.4]} 11... a5 {[%clk 0:02:45.8]} 12. O-O {[%clk 0:02:56.5]}
12... a4 {[%clk 0:02:45.9]} 13. b4 {[%clk 0:02:51.4]} 13... Be6 {[%clk
0:02:31.3]} 14. Rac1 {[%clk 0:02:49.6]} 14... Qd7 {[%clk 0:02:27.5]} 15. a3
{[%clk 0:02:49.1]} 15... Rfc8 {[%clk 0:02:27.7]} 16. Nd5 {[%clk 0:02:45.5]}
16... Bxd5 {[%clk 0:02:23.2]} 17. cxd5 {[%clk 0:02:45.8]} 17... Ne8 {[%clk
0:02:18.3]} 18. Bxg7 {[%clk 0:02:30.5]} 18... Kxg7 {[%clk 0:02:20.2]} 19. Qd4+
{[%clk 0:02:31.1]} 19... Kg8 {[%clk 0:02:14.9]} 20. Qb6 {[%clk 0:02:31]} 20...
Rxc1 {[%clk 0:02:08.3]} 21. Rxc1 {[%clk 0:02:30.6]} 21... Rc8 {[%clk 0:02:10.2]}
22. Rxc8 {[%clk 0:02:08.8]} 22... Qxc8 {[%clk 0:02:12.1]} 23. Qb5 {[%clk
0:02:09.4]} 23... Nf6 {[%clk 0:01:33.1]} 24. Qxa4 {[%clk 0:02:04.9]} 24... Qc3
{[%clk 0:01:34]} 25. Kf1 {[%clk 0:01:42.8]} 25... Qa1+ {[%clk 0:01:28.1]} 26.
Kf2 {[%clk 0:01:35.4]} 26... Qd4+ {[%clk 0:01:27.9]} 27. Kf1 {[%clk 0:01:35.2]}
27... Qa1+ {[%clk 0:01:22]} 28. Kf2 {[%clk 0:01:34.9]} 28... Kg7 {[%clk
0:01:10.2]} 29. Qb3 {[%clk 0:01:32.4]} 29... Qe5 {[%clk 0:01:05.2]} 30. g3
{[%clk 0:01:25.9]} 30... Qd4+ {[%clk 0:01:05.6]} 31. Qe3 {[%clk 0:01:25.5]}
31... Qb2 {[%clk 0:01:06.8]} 32. Kg2 {[%clk 0:01:13.6]} 32... Nd7 {[%clk
0:01:00.4]} 33. f4 {[%clk 0:01:07.9]} 33... Nf6 {[%clk 0:00:53.2]} 34. h3 {[%clk
0:01:08.6]} 34... Qc2 {[%clk 0:00:45.6]} 35. Qd3 {[%clk 0:01:00.2]} 35... Qb2
{[%clk 0:00:42.9]} 36. Kg1 {[%clk 0:00:50.3]} 36... h5 {[%clk 0:00:40.9]} 37.
Kg2 {[%clk 0:00:43.7]} 37... Nd7 {[%clk 0:00:29.6]} 38. Qe3 {[%clk 0:00:29.3]}
38... Nf6 {[%clk 0:00:24.6]} 39. Kg1 {[%clk 0:00:25.5]} 39... Qb1+ {[%clk
0:00:23.8]} 40. Bf1 {[%clk 0:00:20.4]} 40... Nxe4 {[%clk 0:00:23]} 41. Qd4+
{[%clk 0:00:21]} 41... Nf6 {[%clk 0:00:23.1]} 42. g4 {[%clk 0:00:21.5]} 42...
hxg4 {[%clk 0:00:22.9]} 43. hxg4 {[%clk 0:00:23.4]} 43... Kg8 {[%clk 0:00:22.6]}
44. g5 {[%clk 0:00:24.3]} 44... Nh5 {[%clk 0:00:21.5]} 45. Kf2 {[%clk 0:00:25]}
45... Qc1 {[%clk 0:00:20.3]} 46. Qe3 {[%clk 0:00:22.1]} 46... Qb2+ {[%clk
0:00:20.9]} 47. Be2 {[%clk 0:00:22.8]} 47... Ng7 {[%clk 0:00:18.2]} 48. Qxe7
{[%clk 0:00:23.1]} 48... Nf5 {[%clk 0:00:17.6]} 49. Qd8+ {[%clk 0:00:23]} 49...
Kh7 {[%clk 0:00:17]} 50. Qc7 {[%clk 0:00:22.2]} 50... Qd4+ {[%clk 0:00:17.1]}
51. Ke1 {[%clk 0:00:23.5]} 51... Kg7 {[%clk 0:00:14]} 52. Qc4 {[%clk 0:00:16.7]}
52... Qa1+ {[%clk 0:00:12.9]} 53. Kd2 {[%clk 0:00:16.6]} 53... Qxa3 {[%clk
0:00:13.7]} 54. Qc3+ {[%clk 0:00:17.5]} 54... Qxc3+ {[%clk 0:00:13.9]} 55. Kxc3
{[%clk 0:00:19.3]} 55... Ne7 {[%clk 0:00:13.7]} 56. Kc4 {[%clk 0:00:15.3]} 56...
Kf8 {[%clk 0:00:12.7]} 57. Bg4 {[%clk 0:00:13.1]} 57... Ke8 {[%clk 0:00:11.8]}
58. Kd4 {[%clk 0:00:14.2]} 58... Kd8 {[%clk 0:00:12.1]} 59. Kc4 {[%clk
0:00:14.2]} 59... Kc7 {[%clk 0:00:13.2]} 60. Kd4 {[%clk 0:00:14.3]} 60... Kb6
{[%clk 0:00:09.2]} 61. Bd7 {[%clk 0:00:13.9]} 61... Kc7 {[%clk 0:00:07.8]} 62.
Be8 {[%clk 0:00:14.6]} 62... Nf5+ {[%clk 0:00:04.1]} 63. Kd3 {[%clk 0:00:15.3]}
63... Kd8 {[%clk 0:00:04.5]} 64. Bxf7 {[%clk 0:00:15.6]} 64... Nh4 {[%clk
0:00:05.5]} 65. Ke4 {[%clk 0:00:15.8]} 65... Ke7 {[%clk 0:00:06.6]} 66. Be6
{[%clk 0:00:17.5]} 66... Ng2 {[%clk 0:00:05.4]} 67. Bc8 {[%clk 0:00:17.9]} 67...
b6 {[%clk 0:00:05.5]} 68. Ba6 {[%clk 0:00:18.9]} 68... Ne1 {[%clk 0:00:04.5]}
69. Be2 {[%clk 0:00:19]} 69... Nc2 {[%clk 0:00:05.3]} 70. b5 {[%clk 0:00:19.9]}
70... Kf7 {[%clk 0:00:05.6]} 71. Bg4 {[%clk 0:00:19.7]} 71... Nb4 {[%clk
0:00:05.6]} 72. f5 {[%clk 0:00:20]} 72... gxf5+ {[%clk 0:00:05.8]} 73. Bxf5
{[%clk 0:00:21.5]} 73... Na2 {[%clk 0:00:05.4]} 74. Kd4 {[%clk 0:00:21.8]} 74...
Nc1 {[%clk 0:00:05.3]} 75. Ke4 {[%clk 0:00:20.8]} 75... Na2 {[%clk 0:00:05.9]}
76. Kf4 {[%clk 0:00:21]} 76... Nc3 {[%clk 0:00:06.3]} 77. Be4 {[%clk 0:00:22.1]}
77... Nxb5 {[%clk 0:00:06.7]} 78. Ke3 {[%clk 0:00:19.6]} 78... Nc3 {[%clk
0:00:06.7]} 79. Bf3 {[%clk 0:00:20.1]} 79... Kg6 {[%clk 0:00:06.6]} 80. Kd4
{[%clk 0:00:17.1]} 80... Nb5+ {[%clk 0:00:07]} 81. Kc4 {[%clk 0:00:17.9]} 81...
Nc7 {[%clk 0:00:08.3]} 82. Bd1 {[%clk 0:00:16.4]} 82... Kxg5 {[%clk 0:00:09.6]}
83. Ba4 {[%clk 0:00:18.1]} 83... Kf4 {[%clk 0:00:11.1]} 84. Bc6 {[%clk
0:00:18.9]} 84... Ke5 {[%clk 0:00:11.9]} 85. Bb7 {[%clk 0:00:17.6]} 85... Ke4
{[%clk 0:00:11.5]} 86. Bc6 {[%clk 0:00:18]} 86... Ke5 {[%clk 0:00:12.8]} 87. Bb7
{[%clk 0:00:18.3]} 87... Nxd5 {[%clk 0:00:10.7]} 88. Kb5 {[%clk 0:00:14]} 88...
Ke6 {[%clk 0:00:07.5]} 89. Bc8+ {[%clk 0:00:12.9]} 89... Ke5 {[%clk 0:00:06.5]}
90. Bb7 {[%clk 0:00:14.5]} 90... Kd4 {[%clk 0:00:07.8]} 91. Kc6 {[%clk
0:00:10.3]} 91... Nc3 {[%clk 0:00:05.9]} 92. Kxb6 {[%clk 0:00:07.7]} 92... Kc4
{[%clk 0:00:05.8]} 93. Ba6+ {[%clk 0:00:07.5]} 93... Kd5 {[%clk 0:00:05.9]} 94.
Kc7 {[%clk 0:00:08.1]} 94... Kc5 {[%clk 0:00:05.2]} 95. Bb7 {[%clk 0:00:08.8]}
95... Nd5+ {[%clk 0:00:04.7]} 96. Kd7 {[%clk 0:00:07.4]} 96... Nb4 {[%clk
0:00:06.6]} 97. Ke6 {[%clk 0:00:07.9]} 97... Nc6 {[%clk 0:00:07.7]} 98. Kf5
{[%clk 0:00:08.6]} 98... d5 {[%clk 0:00:07.1]} 99. Kf4 {[%clk 0:00:07.7]} 99...
d4 {[%clk 0:00:07.6]} 100. Bxc6 {[%clk 0:00:07.7]} 100... Kxc6 {[%clk
0:00:06.7]} 101. Ke4 {[%clk 0:00:08.8]} 101... Kc5 {[%clk 0:00:07.8]} 102. Kd3
{[%clk 0:00:10.4]} 102... Kd5 {[%clk 0:00:09.6]} 103. Kd2 {[%clk 0:00:11.2]}
103... Kc4 {[%clk 0:00:11.4]} 104. Kc2 {[%clk 0:00:12.1]} 104... d3+ {[%clk
0:00:13.2]} 105. Kd2 {[%clk 0:00:12.9]} 105... Kd4 {[%clk 0:00:14.8]} 106. Kd1
{[%clk 0:00:14.6]} 106... Ke3 {[%clk 0:00:15.5]} 107. Ke1 {[%clk 0:00:15.2]}
107... Kf4 {[%clk 0:00:17.3]} 108. Kd2 {[%clk 0:00:16.8]} 108... Ke4 {[%clk
0:00:18.7]} 109. Kd1 {[%clk 0:00:17.7]} 109... Ke3 {[%clk 0:00:18]} 110. Ke1
{[%clk 0:00:18.1]} 110... d2+ {[%clk 0:00:19.8]} 111. Kd1 {[%clk 0:00:18.6]}
111... Kd3 {[%clk 0:00:21.7]} 1/2-1/2

[Event "*** Biggest EVER Titled Tuesday"]
[Site "Chess.com"]
[Date "2018.04.17"]
[Round "9"]
[White "OK97"]
[Black "Vamostodorecto"]
[Result "0-1"]
[WhiteElo "2553"]
[BlackElo "2385"]
[TimeControl "180+2"]
[EndTime "15:00:53 PDT"]
[Termination "Vamostodorecto won by resignation"]

1. Nf3 {[%clk 0:02:58.1]} 1... d5 {[%clk 0:02:59.5]} 2. g3 {[%clk 0:02:58.6]}
2... Nc6 {[%clk 0:03:01]} 3. d4 {[%clk 0:02:59]} 3... Bg4 {[%clk 0:03:01.7]} 4.
Bg2 {[%clk 0:02:58.9]} 4... Qd7 {[%clk 0:03:03.1]} 5. O-O {[%clk 0:02:59.5]}
5... O-O-O {[%clk 0:03:03.9]} 6. c4 {[%clk 0:03:00.5]} 6... dxc4 {[%clk
0:03:05.8]} 7. Nbd2 {[%clk 0:03:01.8]} 7... Nxd4 {[%clk 0:03:05.5]} 8. Nxd4
{[%clk 0:02:52.9]} 8... Qxd4 {[%clk 0:03:07.4]} 9. Qa4 {[%clk 0:02:54]} 9... Nf6
{[%clk 0:03:06.2]} 10. Nxc4 {[%clk 0:02:07.1]} 10... Bxe2 {[%clk 0:02:46.6]} 11.
Qxa7 {[%clk 0:01:55.6]} 11... Qxa7 {[%clk 0:02:44.9]} 0-1

[Event "*** Biggest EVER Titled Tuesday"]
[Site "Chess.com"]
[Date "2018.04.17"]
[Round "9"]
[White "AndrewDGreen"]
[Black "ChessicallyInclined"]
[Result "1-0"]
[WhiteElo "2156"]
[BlackElo "2144"]
[TimeControl "180+2"]
[EndTime "15:01:13 PDT"]
[Termination "AndrewDGreen won by resignation"]

1. d4 {[%clk 0:03:01.9]} 1... d5 {[%clk 0:03:00.8]} 2. Bf4 {[%clk 0:03:02.1]}
2... e6 {[%clk 0:03:00.2]} 3. e3 {[%clk 0:03:03.3]} 3... Bd6 {[%clk 0:03:01.1]}
4. Bg3 {[%clk 0:03:02.6]} 4... Nf6 {[%clk 0:03:02.2]} 5. c4 {[%clk 0:02:49.9]}
5... c5 {[%clk 0:03:00.9]} 6. dxc5 {[%clk 0:02:48.6]} 6... Bxg3 {[%clk
0:03:00.2]} 7. hxg3 {[%clk 0:02:49]} 7... Qa5+ {[%clk 0:03:01.5]} 8. Nd2 {[%clk
0:02:46.1]} 8... Qxc5 {[%clk 0:03:01.1]} 9. cxd5 {[%clk 0:02:45.3]} 9... Nxd5
{[%clk 0:03:02.3]} 10. Rc1 {[%clk 0:02:44.6]} 10... Nd7 {[%clk 0:02:22.2]} 11.
Rxc5 {[%clk 0:02:40.4]} 11... Nxc5 {[%clk 0:02:24.1]} 12. Nb3 {[%clk 0:02:30.5]}
12... Ne4 {[%clk 0:02:13.3]} 13. Qd4 {[%clk 0:02:26.2]} 13... Nef6 {[%clk
0:02:08.7]} 14. Bb5+ {[%clk 0:02:25.6]} 14... Bd7 {[%clk 0:02:07.4]} 15. Bxd7+
{[%clk 0:02:26]} 15... Kxd7 {[%clk 0:02:09.3]} 16. e4 {[%clk 0:02:26.5]} 1-0

[Event "*** Biggest EVER Titled Tuesday"]
[Site "Chess.com"]
[Date "2018.04.17"]
[Round "9"]
[White "muran29"]
[Black "2165149677570"]
[Result "1-0"]
[WhiteElo "2320"]
[BlackElo "2103"]
[TimeControl "180+2"]
[EndTime "15:01:24 PDT"]
[Termination "muran29 won by resignation"]

1. d4 {[%clk 0:02:42.3]} 1... Nf6 {[%clk 0:02:59.9]} 2. c4 {[%clk 0:02:43.1]}
2... e6 {[%clk 0:03:01.3]} 3. Nf3 {[%clk 0:02:43.6]} 3... b6 {[%clk 0:03:02.5]}
4. a3 {[%clk 0:02:45.1]} 4... Ba6 {[%clk 0:03:03.6]} 5. Qc2 {[%clk 0:02:46]}
5... Bb7 {[%clk 0:03:04.7]} 6. Nc3 {[%clk 0:02:47.1]} 6... c5 {[%clk 0:03:03.5]}
7. d5 {[%clk 0:02:45]} 7... exd5 {[%clk 0:03:04.5]} 8. cxd5 {[%clk 0:02:46.4]}
8... Nxd5 {[%clk 0:03:03.2]} 9. Bg5 {[%clk 0:02:43.5]} 9... Nf6 {[%clk
0:02:54.3]} 10. g3 {[%clk 0:02:43.2]} 10... Be7 {[%clk 0:02:53]} 11. Bg2 {[%clk
0:02:44]} 11... O-O {[%clk 0:02:53.2]} 12. Rd1 {[%clk 0:02:43.2]} 12... d5
{[%clk 0:02:49.6]} 13. O-O {[%clk 0:02:36.6]} 13... d4 {[%clk 0:02:47.1]} 14.
Bxf6 {[%clk 0:02:37.4]} 14... Bxf6 {[%clk 0:02:47.7]} 15. Ng5 {[%clk 0:02:38.8]}
15... d3 {[%clk 0:02:45.1]} 16. Rxd3 {[%clk 0:02:38.1]} 16... Qc8 {[%clk
0:01:57.5]} 17. Bxb7 {[%clk 0:02:37.1]} 17... Qxb7 {[%clk 0:01:55.9]} 18. Rd7
{[%clk 0:02:37.8]} 1-0

[Event "*** Biggest EVER Titled Tuesday"]
[Site "Chess.com"]
[Date "2018.04.17"]
[Round "9"]
[White "Mikhail_Golubev"]
[Black "GianmarcoVaR"]
[Result "1-0"]
[WhiteElo "2378"]
[BlackElo "2504"]
[TimeControl "180+2"]
[EndTime "15:01:46 PDT"]
[Termination "Mikhail_Golubev won by resignation"]

1. e4 {[%clk 0:03:01.9]} 1... c5 {[%clk 0:03:00.4]} 2. Nf3 {[%clk 0:03:01.7]}
2... d6 {[%clk 0:03:02.3]} 3. d4 {[%clk 0:03:02.2]} 3... cxd4 {[%clk 0:03:03.9]}
4. Nxd4 {[%clk 0:03:02.9]} 4... Nf6 {[%clk 0:03:05.8]} 5. Nc3 {[%clk 0:03:03.2]}
5... a6 {[%clk 0:03:03.4]} 6. Bc4 {[%clk 0:03:02.3]} 6... e6 {[%clk 0:03:04]} 7.
Bb3 {[%clk 0:03:02.6]} 7... b5 {[%clk 0:03:04.3]} 8. O-O {[%clk 0:03:01.7]} 8...
Be7 {[%clk 0:03:03.9]} 9. Qf3 {[%clk 0:03:02]} 9... Qb6 {[%clk 0:03:02.4]} 10.
Be3 {[%clk 0:03:02]} 10... Qb7 {[%clk 0:03:03.7]} 11. Qg3 {[%clk 0:03:02.7]}
11... O-O {[%clk 0:02:54.8]} 12. Bh6 {[%clk 0:03:00.4]} 12... Ne8 {[%clk
0:02:55.8]} 13. Rad1 {[%clk 0:03:00]} 13... Bd7 {[%clk 0:02:44.8]} 14. f4 {[%clk
0:02:55.6]} 14... Nc6 {[%clk 0:02:36.4]} 15. f5 {[%clk 0:02:38.8]} 15... Nxd4
{[%clk 0:02:32.3]} 16. Rxd4 {[%clk 0:02:38.5]} 16... Bf6 {[%clk 0:02:29.8]} 17.
Rd2 {[%clk 0:02:35.4]} 17... b4 {[%clk 0:02:27.9]} 18. fxe6 {[%clk 0:02:21.2]}
18... fxe6 {[%clk 0:02:21]} 19. Nd5 {[%clk 0:02:14.9]} 19... Be5 {[%clk
0:02:11.9]} 20. Ne7+ {[%clk 0:02:14]} 1-0

[Event "*** Biggest EVER Titled Tuesday"]
[Site "Chess.com"]
[Date "2018.04.17"]
[Round "9"]
[White "Safar_From_Afar"]
[Black "Karina_Oparina"]
[Result "1/2-1/2"]
[WhiteElo "2284"]
[BlackElo "2162"]
[TimeControl "180+2"]
[EndTime "15:01:48 PDT"]
[Termination "Game drawn by agreement"]

1. e4 {[%clk 0:01:45.3]} 1... c6 {[%clk 0:02:59.3]} 2. d4 {[%clk 0:01:44.4]}
2... d5 {[%clk 0:02:59.2]} 3. e5 {[%clk 0:01:45]} 3... Bf5 {[%clk 0:02:59.5]} 4.
g4 {[%clk 0:01:45]} 4... Bd7 {[%clk 0:02:59.2]} 5. Nc3 {[%clk 0:01:43.2]} 5...
e6 {[%clk 0:02:59.7]} 6. Be3 {[%clk 0:01:43.5]} 6... Bb4 {[%clk 0:02:58.4]} 7.
Qd2 {[%clk 0:01:41.1]} 7... Ne7 {[%clk 0:02:57.1]} 8. O-O-O {[%clk 0:01:39]}
8... Qa5 {[%clk 0:02:49.6]} 9. Nge2 {[%clk 0:01:40]} 9... c5 {[%clk 0:02:43.1]}
10. a3 {[%clk 0:01:38.9]} 10... cxd4 {[%clk 0:02:25.4]} 11. Bxd4 {[%clk
0:01:35.9]} 11... Bc5 {[%clk 0:02:21.1]} 12. Kb1 {[%clk 0:01:35.7]} 12... Bxd4
{[%clk 0:02:20]} 13. Nxd4 {[%clk 0:01:34.9]} 13... Nbc6 {[%clk 0:02:18.8]} 14.
Nb3 {[%clk 0:01:33.2]} 1/2-1/2

[Event "*** Biggest EVER Titled Tuesday"]
[Site "Chess.com"]
[Date "2018.04.17"]
[Round "9"]
[White "aa175"]
[Black "FMJoseHerrera"]
[Result "0-1"]
[WhiteElo "1879"]
[BlackElo "2446"]
[TimeControl "180+2"]
[EndTime "15:01:51 PDT"]
[Termination "FMJoseHerrera won by resignation"]

1. e4 {[%clk 0:03:01.9]} 1... c5 {[%clk 0:03:00.6]} 2. Nf3 {[%clk 0:03:01.6]}
2... e6 {[%clk 0:03:02.1]} 3. b4 {[%clk 0:02:53.5]} 3... cxb4 {[%clk 0:03:02.4]}
4. a3 {[%clk 0:02:53.7]} 4... bxa3 {[%clk 0:03:02.5]} 5. Rxa3 {[%clk 0:02:50.7]}
5... Ne7 {[%clk 0:03:03.1]} 6. Nc3 {[%clk 0:02:48.4]} 6... Ng6 {[%clk
0:03:03.6]} 7. e5 {[%clk 0:02:45.9]} 7... Nc6 {[%clk 0:03:04.4]} 8. d4 {[%clk
0:02:45.9]} 8... Bb4 {[%clk 0:03:00.3]} 9. h4 {[%clk 0:02:25.7]} 9... Nge7
{[%clk 0:02:49]} 10. h5 {[%clk 0:02:18.7]} 10... Nd5 {[%clk 0:02:48.1]} 11. h6
{[%clk 0:01:34.4]} 11... Nxc3 {[%clk 0:02:30.2]} 12. Qd2 {[%clk 0:01:24.8]}
12... Ne4 {[%clk 0:02:24.2]} 13. c3 {[%clk 0:01:23.7]} 13... Nxd2 {[%clk
0:02:24.5]} 14. cxb4 {[%clk 0:01:24.4]} 14... Nxf3+ {[%clk 0:02:25.3]} 0-1

[Event "*** Biggest EVER Titled Tuesday"]
[Site "Chess.com"]
[Date "2018.04.17"]
[Round "9"]
[White "PenguinPacks"]
[Black "KRASAVCHIK2002"]
[Result "0-1"]
[WhiteElo "2147"]
[BlackElo "2037"]
[TimeControl "180+2"]
[EndTime "15:03:21 PDT"]
[Termination "KRASAVCHIK2002 won by resignation"]

1. Nf3 {[%clk 0:03:01.9]} 1... Nf6 {[%clk 0:03:00.2]} 2. g3 {[%clk 0:03:02.8]}
2... b6 {[%clk 0:02:59.6]} 3. Bg2 {[%clk 0:03:03.5]} 3... Bb7 {[%clk 0:02:58.5]}
4. O-O {[%clk 0:03:05.4]} 4... g6 {[%clk 0:02:59]} 5. b3 {[%clk 0:03:06.9]} 5...
Bg7 {[%clk 0:03:00.2]} 6. Bb2 {[%clk 0:03:08.5]} 6... O-O {[%clk 0:03:01.4]} 7.
c4 {[%clk 0:03:10.1]} 7... d6 {[%clk 0:03:01.9]} 8. Nc3 {[%clk 0:03:11.5]} 8...
Ne4 {[%clk 0:03:01.2]} 9. Qc2 {[%clk 0:03:11.5]} 9... Nxc3 {[%clk 0:02:58.6]}
10. Bxc3 {[%clk 0:03:13.4]} 10... e5 {[%clk 0:02:59.7]} 11. d4 {[%clk
0:03:13.8]} 11... e4 {[%clk 0:02:57.9]} 12. Nd2 {[%clk 0:03:05.6]} 12... f5
{[%clk 0:02:58.9]} 13. e3 {[%clk 0:03:04.3]} 13... Nd7 {[%clk 0:02:53.8]} 14. b4
{[%clk 0:02:58.7]} 14... c5 {[%clk 0:02:39.1]} 15. a3 {[%clk 0:02:58]} 15...
cxd4 {[%clk 0:02:36.2]} 16. exd4 {[%clk 0:02:59.9]} 16... Rc8 {[%clk 0:02:35.3]}
17. Rae1 {[%clk 0:02:59.2]} 17... d5 {[%clk 0:02:36.3]} 18. f3 {[%clk 0:02:49]}
18... Re8 {[%clk 0:02:34.1]} 19. Qa2 {[%clk 0:02:16.6]} 19... e3 {[%clk
0:02:30.3]} 20. Nb1 {[%clk 0:02:11.4]} 20... Rxc4 {[%clk 0:02:30.8]} 21. f4
{[%clk 0:02:09.7]} 21... Bxd4 {[%clk 0:02:25.3]} 22. Bxd4 {[%clk 0:02:08.1]}
22... Rxd4 {[%clk 0:02:27.2]} 23. Re2 {[%clk 0:02:07.2]} 23... Ba6 {[%clk
0:02:23.2]} 24. Bxd5+ {[%clk 0:02:01.9]} 24... Kg7 {[%clk 0:02:18.8]} 25. b5
{[%clk 0:01:56.9]} 25... Bxb5 {[%clk 0:02:15.1]} 26. Qb2 {[%clk 0:01:57.9]}
26... Bxe2 {[%clk 0:02:13.7]} 27. Qxd4+ {[%clk 0:01:58.8]} 27... Qf6 {[%clk
0:02:15.2]} 28. Qxf6+ {[%clk 0:01:48.5]} 28... Nxf6 {[%clk 0:02:17.1]} 29. Re1
{[%clk 0:01:49.5]} 29... Nxd5 {[%clk 0:02:15.5]} 30. Rxe2 {[%clk 0:01:50.8]}
30... Rc8 {[%clk 0:02:15.5]} 31. Kg2 {[%clk 0:01:47.2]} 31... Rc1 {[%clk
0:02:15.4]} 32. Rb2 {[%clk 0:01:47.8]} 32... e2 {[%clk 0:02:14.8]} 33. Rxe2
{[%clk 0:01:47.1]} 33... Rxb1 {[%clk 0:02:16]} 34. Rd2 {[%clk 0:01:49]} 34...
Nf6 {[%clk 0:02:14.3]} 35. Rc2 {[%clk 0:01:49.4]} 35... Rd1 {[%clk 0:02:13]} 36.
Rc7+ {[%clk 0:01:50]} 36... Rd7 {[%clk 0:02:14.4]} 37. Rc2 {[%clk 0:01:51.7]}
37... Ne4 {[%clk 0:02:14.7]} 38. Kf3 {[%clk 0:01:51.8]} 38... Rd3+ {[%clk
0:02:14.9]} 39. Ke2 {[%clk 0:01:51.7]} 39... Rxa3 {[%clk 0:02:16.1]} 0-1

[Event "*** Biggest EVER Titled Tuesday"]
[Site "Chess.com"]
[Date "2018.04.17"]
[Round "9"]
[White "wonderfultime"]
[Black "AkshatChandra"]
[Result "0-1"]
[WhiteElo "2791"]
[BlackElo "2822"]
[TimeControl "180+2"]
[EndTime "15:03:24 PDT"]
[Termination "AkshatChandra won by resignation"]

1. d4 {[%clk 0:03:01.9]} 1... Nf6 {[%clk 0:03:00.9]} 2. Bf4 {[%clk 0:03:00.8]}
2... d5 {[%clk 0:03:02]} 3. e3 {[%clk 0:03:01.6]} 3... e6 {[%clk 0:03:03.6]} 4.
Nf3 {[%clk 0:03:02.5]} 4... c5 {[%clk 0:03:05.5]} 5. c3 {[%clk 0:03:03.6]} 5...
Nc6 {[%clk 0:03:07]} 6. Nbd2 {[%clk 0:03:04.7]} 6... Bd6 {[%clk 0:03:08.6]} 7.
Bg3 {[%clk 0:03:05.8]} 7... O-O {[%clk 0:03:09.8]} 8. Bb5 {[%clk 0:03:07.1]}
8... Ne7 {[%clk 0:03:08.1]} 9. Bd3 {[%clk 0:03:08.3]} 9... c4 {[%clk 0:03:09.5]}
10. Bc2 {[%clk 0:03:09.2]} 10... b5 {[%clk 0:03:10.7]} 11. e4 {[%clk 0:03:07.9]}
11... dxe4 {[%clk 0:03:12.6]} 12. Nxe4 {[%clk 0:03:09.7]} 12... Nxe4 {[%clk
0:03:14.5]} 13. Bxe4 {[%clk 0:03:11.1]} 13... Rb8 {[%clk 0:03:15.9]} 14. Bxh7+
{[%clk 0:01:18.8]} 14... Kxh7 {[%clk 0:03:17.8]} 15. Ng5+ {[%clk 0:01:19.7]}
15... Kg6 {[%clk 0:03:19.1]} 16. Bxd6 {[%clk 0:01:20.9]} 16... Qxd6 {[%clk
0:03:16.5]} 17. h4 {[%clk 0:01:17.3]} 17... Qf4 {[%clk 0:02:17.3]} 18. g3 {[%clk
0:01:11.8]} 18... Qf5 {[%clk 0:02:14.2]} 19. Qd2 {[%clk 0:00:48]} 19... Nd5
{[%clk 0:02:08.7]} 20. h5+ {[%clk 0:00:37.7]} 20... Kf6 {[%clk 0:02:07.7]} 21.
Nh7+ {[%clk 0:00:38.9]} 0-1

[Event "*** Biggest EVER Titled Tuesday"]
[Site "Chess.com"]
[Date "2018.04.17"]
[Round "9"]
[White "VeraNebolsina"]
[Black "Gr3egor"]
[Result "1-0"]
[WhiteElo "2501"]
[BlackElo "2347"]
[TimeControl "180+2"]
[EndTime "15:03:31 PDT"]
[Termination "VeraNebolsina won by resignation"]

1. e4 {[%clk 0:03:01.9]} 1... e5 {[%clk 0:03:00.4]} 2. Nf3 {[%clk 0:03:01.3]}
2... Nc6 {[%clk 0:03:01.3]} 3. Bc4 {[%clk 0:02:59.2]} 3... Bc5 {[%clk
0:03:01.3]} 4. O-O {[%clk 0:02:58.8]} 4... Nf6 {[%clk 0:03:02.7]} 5. d3 {[%clk
0:02:59.2]} 5... O-O {[%clk 0:03:02.8]} 6. c3 {[%clk 0:02:55.9]} 6... d5 {[%clk
0:03:03.8]} 7. exd5 {[%clk 0:02:56.4]} 7... Nxd5 {[%clk 0:03:05.7]} 8. h3 {[%clk
0:02:39.3]} 8... Nb6 {[%clk 0:03:02.5]} 9. Bb3 {[%clk 0:02:34.7]} 9... Bf5
{[%clk 0:02:59.5]} 10. Bc2 {[%clk 0:02:30.1]} 10... Qd7 {[%clk 0:02:53.9]} 11.
Qe2 {[%clk 0:01:58.3]} 11... Rad8 {[%clk 0:02:53.7]} 12. b4 {[%clk 0:01:22.4]}
12... Bd6 {[%clk 0:02:43.5]} 13. Nbd2 {[%clk 0:01:18.9]} 13... Bg6 {[%clk
0:02:36]} 14. Ne4 {[%clk 0:01:17]} 14... f5 {[%clk 0:02:33.2]} 15. Bb3+ {[%clk
0:01:11.5]} 15... Kh8 {[%clk 0:02:33.3]} 16. Neg5 {[%clk 0:01:11.4]} 16... Rde8
{[%clk 0:02:31.4]} 17. Nh4 {[%clk 0:01:11.2]} 17... e4 {[%clk 0:02:24]} 18.
Nxg6+ {[%clk 0:01:03.7]} 18... hxg6 {[%clk 0:02:24.3]} 19. f4 {[%clk 0:00:52]}
19... exd3 {[%clk 0:02:20.4]} 20. Qf2 {[%clk 0:00:50.8]} 20... Bc5 {[%clk
0:01:57.9]} 21. bxc5 {[%clk 0:00:49.3]} 21... Nd5 {[%clk 0:01:59.3]} 22. Qh4+
{[%clk 0:00:48.3]} 1-0